fUSD/lending_fUSD_20240220
["ID","MTS","AMOUNT","RATE_DAILY","PERIOD"]
[314518690,1708399848097,-17926.18,0.00037226,2]
[314518691,1708399848107,-1250.8,0.00037226,2]
[314518692,1708399848120,-1368.25,0.00037226,2]
[314518693,1708399848131,-1541.62306454,0.00037226,2]
[314518694,1708399876111,346.46670345,5e-05,2]
[314518695,1708399895992,230.9778023,5e-05,2]
[314518696,1708399918005,62.76858122,5e-05,2]
[314518697,1708399918027,129.7129207,5e-05,2]
[314518699,1708399934010,20.2870793,5e-05,2]
[314518700,1708399934029,134.7129207,5e-05,2]
[314518701,1708399952018,150.0,5e-05,2]
[314518702,1708399952038,5.0,5e-05,2]
[314518703,1708399970018,155.0,5e-05,2]
[314518704,1708399988019,150.0,5e-05,2]
[314518705,1708399988288,5.0,5e-05,2]
[314518706,1708400757131,-597.54791871,0.00033394,4]
[314518708,1708400800081,-100.49208129,0.00033394,4]
[314518709,1708400800102,-168.12834288,0.00033395,2]
[314518720,1708401032339,-698.04,0.00032932,4]
[314518721,1708401032350,-428.96,0.00032933,2]
[314518722,1708401032359,-155.0,0.00033395,4]
[314518723,1708401032369,-1435.86,0.00033403,2]
[314518724,1708401032379,-1454.41,0.00033405,2]
[314518725,1708401032389,-1443.57,0.00033407,2]
[314518726,1708401032398,-1433.45,0.00033409,2]
[314518727,1708401032408,-1020.02140268,0.00033411,2]
[314518728,1708401032421,-447.49859732,0.00033411,2]
[314518729,1708401032431,-144.32454669,0.00033417,2]
[314518730,1708401032447,-1289.68545331,0.00033417,2]
[314518731,1708401032457,-1433.75,0.00033426,2]
[314518732,1708401032471,-400.0,0.00033449,3]
[314518733,1708401032484,-150.0,0.00033449,2]
[314518734,1708401032493,-675.04247242,0.0003345,2]
[314518735,1708401032509,-764.55752758,0.0003345,2]
[314518736,1708401032520,-149.05742543,0.00033494,2]
[314518737,1708401032545,-334.50747262,0.00033494,2]
[314518738,1708401032594,-322.27579385,0.00033494,2]
[314518739,1708401034681,-614.8793081,0.00033494,2]
[314518740,1708401034691,-692.5529149,0.00033658,4]
[314518741,1708401034700,-1730.95235297,0.000341,3]
[314518904,1708401038180,-580.3333379,0.000341,3]
[314518909,1708401038243,-88.71430913,0.000341,3]
[314518910,1708401038252,-1557.28526674,0.0003476,2]
[314518911,1708401038265,-758.36707319,0.0003476,2]
[314518912,1708401038280,-21584.34766007,0.0003476,2]
[314518913,1708401038289,-239.73,0.00034768,10]
[314518914,1708401038299,-186.48,0.00034769,2]
[314518915,1708401038308,-162.05,0.00034786,2]
[314518916,1708401038318,-250.0,0.00034793,2]
[314518917,1708401038328,-250.0,0.00034794,2]
[314518918,1708401038338,-150.0,0.00034799,2]
[314518919,1708401038349,-166.32894227,0.00034898,2]
[314518920,1708401038359,-3059.1574291,0.00034999,2]
[314518921,1708401038386,-941.43031319,0.00034999,2]
[314518922,1708401038398,-4855.11595768,0.00034999,2]
[314518923,1708401038410,-257.4999994,0.00034999,2]
[314518924,1708401038449,-1792.04521374,0.00034999,2]
[314518925,1708401038497,-3786.29157452,0.00034999,2]
[314518926,1708401038600,-1204.76842341,0.00034999,2]
[314518927,1708401038611,-1369.29431586,0.00034999,2]
[314518928,1708401038624,-2643.49765779,0.00034999,2]
[314518936,1708401040824,-5776.23672521,0.00034999,2]
[314518937,1708401040836,-2000.0,0.00035,4]
[314518938,1708401040845,-155.66,0.00035054,2]
[314518939,1708401040855,-800.0,0.00035079,2]
[314518940,1708401040865,-548.74,0.00035111,2]
[314518941,1708401040874,-428.96,0.00035196,2]
[314518942,1708401040884,-166.32894222,0.00035294,2]
[314518943,1708401040893,-2689.0,0.00035337,2]
[314518944,1708401040903,-151.77,0.00035357,2]
[314518945,1708401040913,-283.75,0.00035402,2]
[314518946,1708401040922,-157.15,0.00035581,2]
[314518947,1708401040932,-200.0,0.00035581,2]
[314518948,1708401040941,-1127.15,0.00035594,2]
[314518949,1708401040950,-2000.0,0.00035596,2]
[314518950,1708401040959,-239.73,0.0003562,10]
[314518951,1708401040968,-166.32894222,0.00035691,2]
[314518952,1708401040978,-177.58,0.00035786,2]
[314518953,1708401040988,-150.0,0.0003598,2]
[314518954,1708401040997,-150.79559551,0.0003598,2]
[314518955,1708401041006,-2632.93690607,0.00036053,4]
[314518956,1708401041019,-471.09919136,0.00036053,4]
[314518957,1708401041028,-287.19,0.00036054,2]
[314518958,1708401041038,-499.99,0.00036054,2]
[314518959,1708401041047,-186.48,0.00036055,2]
[314518960,1708401041056,-166.32894222,0.00036087,2]
[314518961,1708401041066,-300.0,0.00036164,2]
[314518962,1708401041075,-423.07,0.00036164,2]
[314518963,1708401041085,-419.31,0.00036164,2]
[314518964,1708401041094,-423.07,0.00036164,2]
[314518965,1708401041103,-419.31,0.00036164,2]
[314518966,1708401041112,-423.07,0.00036164,2]
[314518967,1708401041122,-419.31,0.00036164,2]
[314518968,1708401041131,-151.77,0.00036241,2]
[314518969,1708401041140,-219.0,0.00036288,2]
[314518970,1708401041149,-317.89220112,0.00036334,2]
[314518971,1708401041160,-36.59779888,0.00036334,2]
[314518972,1708401041170,-1289.1,0.00036438,2]
[314518973,1708401041179,-483.75,0.00036438,2]
[314518974,1708401041188,-239.73,0.00036472,10]
[314518975,1708401041197,-685.25,0.00036478,2]
[314518976,1708401041207,-300.0,0.00036478,2]
[314518977,1708401041216,-3.74751966,0.00036478,2]
[314518978,1708401041227,-419.32248034,0.00036478,2]
[314518979,1708401041236,-461.22438873,0.00036478,2]
[314518980,1708401041256,-390.88561127,0.00036478,2]
[314518981,1708401041265,-150.0,0.00036478,2]
[314518982,1708401041274,-303.44544884,0.00036478,2]
[314518983,1708401042560,-119.62455116,0.00036478,2]
[314518984,1708401042569,-608.22144182,0.00036478,2]
[314518989,1708401043367,-230.08855818,0.00036478,2]
[314518990,1708401043377,-166.32894222,0.00036484,2]
[314518991,1708401043387,-4.79314458,0.0003658,6]
[314518992,1708401043433,-3668.58569899,0.0003658,6]
[314518993,1708401043446,-4585.5789353,0.0003658,6]
[314518994,1708401043458,-5158.02655053,0.0003658,6]
[314518995,1708401043470,-1212.09926053,0.0003658,6]
[314518996,1708401043483,-4978.16417335,0.0003658,6]
[314519008,1708401046540,-798.14497863,0.0003658,6]
[314519011,1708401046646,-0.02370785,0.0003658,6]
[314519018,1708401069800,697.39741529,0.00023,2]
[314519019,1708401069823,12728.43945407,0.00023,2]
[314519020,1708401069845,155.0,0.00023,2]
[314519021,1708401069871,139308.70388454,0.00023,2]
[314519022,1708401114212,150.0,0.00023,2]
[314519023,1708401114238,5.0,0.00023,2]
[314519024,1708401130191,269.95551298,0.00023,2]
[314519025,1708401203443,155.90000599,0.00023,2]
[314519026,1708401221442,155.0,0.00023,2]
[314519027,1708401232907,155.0,0.00023,2]
[314519028,1708401252897,155.0,0.00023,2]
[314519029,1708401274903,155.0,0.00023,2]
[314519030,1708401290913,150.0,0.00023,2]
[314519031,1708401290933,5.0,0.00023,2]
[314519032,1708401311429,150.0,0.00023,2]
[314519033,1708401311450,62.39507378,0.00023,2]
[314519035,1708402145293,-519.5412,0.00024149,2]
[314519036,1708402145313,-193.00669437,0.0002415,2]
[314519037,1708402145333,-723.19388835,0.0002425,2]
[314519038,1708402145352,-258.0603,0.00024889,2]
[314519039,1708402145373,-169.48754857,0.00024989,2]
[314519040,1708402145392,-193.00669437,0.0002499,2]
[314519041,1708402145411,-479.98454521,0.00025,2]
[314519042,1708402145431,-750.0,0.00025,3]
[314519043,1708402145451,-1298.69265303,0.00025089,2]
[314519044,1708402145470,-300.0,0.00025089,2]
[314519045,1708402145489,-150.0,0.00025089,2]
[314519046,1708402145509,-19457.72336686,0.0002509,2]
[314519047,1708402145527,-7619.04410924,0.0002509,2]
[314519048,1708402149293,-7009.20830339,0.0002509,2]
[314519049,1708402152100,-903.90060942,0.0002509,2]
[314519050,1708402152119,-9596.82071038,0.000263,2]
[314519051,1708402152140,-353.49,0.000263,2]
[314519052,1708402152159,-2234.65927871,0.000264,2]
[314519053,1708402152179,-155.0,0.00026551,2]
[314519054,1708402152199,-150.0,0.00027177,2]
[314519055,1708402152220,-764.45430584,0.00027199,2]
[314519056,1708402152240,-27085.52173753,0.000272,2]
[314519057,1708402152262,-4741.34635195,0.000275,2]
[314519058,1708402152281,-361.09783348,0.00027874,2]
[314519059,1708402152300,-451.78145588,0.0003,2]
[314519060,1708402152320,-627.04677195,0.000301,2]
[314519061,1708402152340,-450.72,0.00031319,2]
[314519062,1708402152359,-909.30618626,0.00031581,2]
[314519063,1708402157599,1392.47382846,0.00031318,4]
[314519064,1708402168084,-511.49597498,0.00032799,4]
[314519065,1708402168103,-600.7938614,0.000328,2]
[314519066,1708402168122,-640.0,0.00033188,2]
[314519067,1708402168143,-457.28,0.00033192,2]
[314519068,1708402168169,-250.0,0.0003322,2]
[314519069,1708402168189,-159.82,0.00033244,10]
[314519070,1708402168209,-2000.0,0.00033275,2]
[314519071,1708402168230,-214.0,0.00033288,2]
[314519072,1708402168250,-284.89636451,0.00033291,2]
[314519073,1708402168269,-11748.93063549,0.00033295,2]
[314519095,1708402231558,-12151.06936451,0.00033295,2]
[314519096,1708402231568,-263.19,0.00033391,2]
[314519097,1708402231579,-450.72,0.00033583,2]
[314519098,1708402231591,-12567.0,0.00034,3]
[314519099,1708402231601,-250.0,0.00034242,2]
[314519100,1708402231610,-698.04,0.0003452,4]
[314519101,1708402231620,-186.98,0.00034521,2]
[314519102,1708402231630,-1447.38,0.00034689,2]
[314519103,1708402231639,-360.0,0.00034844,2]
[314519104,1708402231648,-159.82,0.00034873,10]
[314519105,1708402231658,-2000.0,0.00035,4]
[314519106,1708402231667,-263.19,0.00035034,2]
[314519107,1708402231677,-596.076419,0.00035068,2]
[314519108,1708402231687,-579.424435,0.00035068,2]
[314519109,1708402231696,-832.18,0.00035342,2]
[314519110,1708402231705,-419.31,0.00035342,2]
[314519111,1708402231715,-412.45,0.00035342,2]
[314519112,1708402231724,-419.31,0.00035342,2]
[314519113,1708402231734,-412.45,0.00035342,2]
[314519114,1708402231743,-419.31,0.00035342,2]
[314519115,1708402231753,-563.95,0.00035478,2]
[314519116,1708402231762,-419.31,0.00035478,2]
[314519117,1708402231773,-419.31,0.00035478,2]
[314519118,1708402231783,-450.72,0.00035847,2]
[314519119,1708402231792,-894.114629,0.00035958,2]
[314519120,1708402231801,-869.136653,0.00035958,2]
[314519121,1708402231810,-423.07,0.00035978,2]
[314519122,1708402231819,-419.31,0.00035978,2]
[314519123,1708402231830,-412.45,0.00036164,2]
[314519124,1708402231843,-419.31,0.00036164,2]
[314519125,1708402231854,-411.78,0.00036164,2]
[314519126,1708402231863,-412.6,0.00036164,2]
[314519127,1708402231873,-838.5,0.00036164,2]
[314519128,1708402231884,-553.77,0.00036164,2]
[314519129,1708402231895,-186.98,0.00036224,2]
[314519130,1708402231905,-292.63,0.00036269,6]
[314519131,1708402231916,-12060.00900744,0.0003628,6]
[314519132,1708402233801,-519.80629185,0.0003628,6]
[314519133,1708402233814,-9948.37588796,0.0003628,6]
[314519134,1708402233827,-278.36627339,0.0003628,6]
[314519135,1708402233848,-20068.50126008,0.0003628,6]
[314519136,1708402233925,-530.38881895,0.0003628,6]
[314519137,1708402233985,-548.90140235,0.0003628,6]
[314519162,1708402237546,-747.95149953,0.00034519,4]
[314519163,1708402237559,-180.36438611,0.00034519,4]
[314519164,1708402237568,-560.91285344,0.0003628,6]
[314519165,1708402237580,-420.8888349,0.0003628,6]
[314519166,1708402237595,-313.89851893,0.0003628,6]
[314519402,1708402240243,-189649.25085071,0.0003628,6]
[314519404,1708402240253,-180.84831649,0.00036373,2]
[314519406,1708402240262,-14763.51450137,0.00036402,2]
[314519408,1708402240272,-14763.51450137,0.00036464,2]
[314519410,1708402240281,-2453.5621,0.00036469,2]
[314519412,1708402240290,-189.93090966,0.0003648,2]
[314519414,1708402240299,-159.82,0.00036502,10]
[314519416,1708402240308,-3821.49679905,0.00036526,2]
[314519630,1708402242439,-291.252,0.0003612,2]
[314519969,1708402245867,-1884.35927,0.0003612,2]
[314519970,1708402245877,-6477.73580949,0.00036526,2]
[314520347,1708403157144,-862.00051953,0.00030285,4]
[314520348,1708403157163,-698.04,0.00030286,4]
[314520349,1708403157183,-1143.96094725,0.00030287,3]
[314520350,1708403157201,-155.0,0.00030287,4]
[314520351,1708403157222,-209.0,0.00030288,2]
[314520352,1708403157241,-166.08064409,0.00030876,2]
[314520353,1708403157260,-1627.80608052,0.00030974,4]
[314520354,1708403157280,-1027.09791572,0.00032178,4]
[314520355,1708403157299,-155.0,0.00032283,4]
[314520356,1708403157318,-155.0,0.00032284,4]
[314520357,1708403157337,-300.0,0.00032287,3]
[314520358,1708403157355,-150.0,0.00032287,2]
[314520359,1708403157374,-499.99,0.00032288,2]
[314520360,1708403157393,-11680.48139289,0.00032288,2]
[314520361,1708403225136,-155.18167589,0.00025,3]
[314520362,1708403227133,-594.81832411,0.00025,3]
[314520363,1708403227156,-205.19983388,0.00027,3]
[314520364,1708403239122,-594.80016612,0.00027,3]
[314520365,1708403239146,-850.0,0.00029,3]
[314520366,1708403239177,-206.00002,0.00030288,2]
[314520367,1708403239198,-900.0,0.00031,3]
[314520368,1708403239219,-2725.19526988,0.00032288,2]
[314520369,1708403240093,-150.55679814,0.00032288,2]
[314520370,1708403240130,-1081.20653909,0.00032288,2]
[314520371,1708403240155,-209.0,0.0003241,6]
[314520372,1708403240177,-563.01,0.00032581,2]
[314520373,1708403240198,-950.0,0.00033,3]
[314520374,1708403240219,-300.0,0.00033095,2]
[314520375,1708403240240,-150.0,0.00033186,3]
[314520376,1708403240268,-350.0,0.00033186,3]
[314520377,1708403240290,-3353.5496,0.00033187,2]
[314520378,1708403240311,-150.0,0.00033395,2]
[314520379,1708403240333,-250.0,0.0003389,2]
[314520380,1708403240354,-164.35556735,0.00033943,2]
[314520381,1708403240374,-150.0,0.00033999,2]
[314520382,1708403240395,-2468.0,0.00034,3]
[314520383,1708403240418,-1110.836235,0.00034,3]
[314520384,1708403252082,-13215.163765,0.00034,3]
[314520385,1708403252105,-171.29,0.00034071,2]
[314520386,1708403252127,-698.04,0.00034213,4]
[314520387,1708403252152,-266.72,0.00034214,2]
[314520388,1708403252179,-1291.08922197,0.00034214,2]
[314520393,1708403349088,-205.99998,0.00030288,2]
[314520396,1708403370294,-599.07,0.00032291,2]
[314520397,1708403373931,209.00002,0.00030288,2]
[314520408,1708403431660,-698.04,0.00033899,4]
[314520409,1708403431670,-150.0,0.00033899,3]
[314520410,1708403431681,-150.0,0.00033899,2]
[314520411,1708403431691,-5507.71024047,0.000339,2]
[314520412,1708403431704,-3582.01077552,0.000339,2]
[314520413,1708403431716,-10318.92308401,0.000339,2]
[314520414,1708403431725,-154.15568377,0.00034213,2]
[314520415,1708403431734,-708.91077803,0.00034214,2]
[314520416,1708403431743,-30203.55,0.00034309,2]
[314520417,1708403431752,-7029.08,0.00034314,2]
[314520418,1708403431761,-945.43,0.00034328,2]
[314520419,1708403431770,-154.15568373,0.00034342,2]
[314520420,1708403431779,-512.0,0.00034352,2]
[314520421,1708403431789,-1616.71,0.00034354,2]
[314520422,1708403431798,-500.0,0.00034368,2]
[314520423,1708403431806,-12255.55,0.00034395,2]
[314520424,1708403431816,-23900.0,0.00034416,2]
[314520425,1708403431825,-154.15568373,0.00034472,2]
[314520426,1708403431834,-7425.42,0.00034485,37]
[314520427,1708403431843,-182.95,0.00034529,2]
[314520428,1708403431852,-209.0,0.00034532,10]
[314520429,1708403431861,-164.51,0.00034554,2]
[314520430,1708403431871,-599.07,0.00034555,2]
[314520431,1708403431880,-250.0,0.00034576,2]
[314520432,1708403431889,-154.15568373,0.00034601,2]
[314520433,1708403431898,-154.15568373,0.00034731,2]
[314520434,1708403431908,-153.34,0.00034785,2]
[314520435,1708403431917,-154.15568373,0.0003486,2]
[314520436,1708403431926,-154.15568373,0.0003499,2]
[314520437,1708403431936,-1000.0,0.00035,3]
[314520438,1708403431945,-153.34,0.00035017,2]
[314520439,1708403431954,-154.15568373,0.00035119,2]
[314520440,1708403431964,-488.0,0.0003517,2]
[314520441,1708403431973,-166.78,0.00035235,2]
[314520442,1708403431983,-154.15568373,0.00035248,2]
[314520443,1708403431993,-153.34,0.00035249,2]
[314520444,1708403432002,-838.62,0.00035342,2]
[314520445,1708403432012,-154.15568373,0.00035378,2]
[314520446,1708403432021,-723.07820129,0.00035425,2]
[314520447,1708403432031,-166.6,0.0003546,2]
[314520448,1708403432041,-153.34,0.0003548,2]
[314520449,1708403432050,-154.15568373,0.00035507,2]
[314520450,1708403432059,-4245.7215,0.0003558,2]
[314520451,1708403432069,-154.15568373,0.00035637,2]
[314520452,1708403432078,-150.0,0.00035646,2]
[314520453,1708403432088,-153.34,0.00035712,2]
[314520454,1708403432097,-154.15568373,0.00035766,2]
[314520455,1708403432106,-300.0,0.000358,2]
[314520456,1708403432115,-266.72,0.00035858,2]
[314520457,1708403432125,-487.0,0.0003589,2]
[314520458,1708403432134,-154.15568373,0.00035895,2]
[314520459,1708403432143,-150.0,0.000359,2]
[314520460,1708403432152,-150.0,0.000359,20]
[314520461,1708403432161,-177.58,0.000359,2]
[314520462,1708403432170,-300.0,0.000359,2]
[314520463,1708403432180,-300.0,0.000359,5]
[314520464,1708403432189,-153.34,0.00035944,2]
[314520465,1708403432199,-487.0,0.00036,2]
[314520466,1708403432209,-154.15568373,0.00036025,2]
[314520467,1708403432221,-154.15568373,0.00036154,2]
[314520468,1708403432230,-487.0,0.00036164,2]
[314520469,1708403432240,-331.65,0.00036164,2]
[314520470,1708403432250,-154.57,0.00036164,2]
[314520471,1708403432259,-150.0,0.00036164,2]
[314520472,1708403432269,-343.89,0.00036164,2]
[314520473,1708403432278,-314.49,0.00036164,2]
[314520474,1708403432288,-152.03,0.00036164,2]
[314520475,1708403432298,-150.0,0.00036164,2]
[314520476,1708403432308,-343.89,0.00036164,2]
[314520477,1708403432319,-150.0,0.00036164,2]
[314520478,1708403432328,-150.0,0.00036164,2]
[314520479,1708403432337,-150.0,0.00036164,2]
[314520480,1708403432346,-343.89,0.00036164,2]
[314520481,1708403432355,-423.07,0.00036164,2]
[314520482,1708403432364,-343.89,0.00036164,2]
[314520483,1708403432373,-150.0,0.00036164,2]
[314520484,1708403432384,-150.0,0.00036164,2]
[314520485,1708403432393,-150.0,0.00036164,2]
[314520486,1708403432402,-423.07,0.00036164,2]
[314520487,1708403432411,-150.0,0.00036164,2]
[314520488,1708403432420,-343.89,0.00036164,2]
[314520489,1708403432430,-423.07,0.00036164,2]
[314520490,1708403432439,-300.0,0.00036164,2]
[314520491,1708403432448,-735.66,0.00036164,2]
[314520492,1708403432457,-423.07,0.00036164,2]
[314520493,1708403432466,-423.07,0.00036164,2]
[314520494,1708403432475,-838.06,0.00036164,2]
[314520495,1708403432484,-198.49,0.00036164,2]
[314520496,1708403432494,-419.31,0.00036164,2]
[314520497,1708403432503,-153.34,0.00036176,2]
[314520498,1708403432513,-9136.1875,0.00036179,2]
[314520499,1708403432522,-1000.0,0.0003618,2]
[314520500,1708403432531,-2500.0,0.0003618,2]
[314520501,1708403432540,-152.95690751,0.00036258,7]
[314520502,1708403432549,-990.4917,0.00036258,2]
[314520503,1708403432558,-10769.6754,0.00036259,2]
[314520504,1708403432568,-500.0,0.00036259,2]
[314520505,1708403432577,-522.77462875,0.00036267,2]
[314520506,1708403432587,-773.59657136,0.00036279,4]
[314520507,1708403432597,-1069.49630905,0.0003628,4]
[314520508,1708403432606,-62586.2230972,0.0003628,2]
[314520509,1708403432615,-154.15568373,0.00036284,2]
[314520510,1708403432624,-302.94181634,0.00036289,2]
[314520511,1708403432634,-11517.62330592,0.00036299,2]
[314520512,1708403432643,-150.0,0.00036317,2]
[314520513,1708403432652,-500.0,0.00036325,2]
[314520514,1708403432662,-500.0,0.00036325,2]
[314520515,1708403432671,-518.84775826,0.00036325,2]
[314520516,1708403432682,-500.0,0.00036325,2]
[314520517,1708403432691,-500.0,0.00036325,2]
[314520518,1708403432700,-500.0,0.00036325,2]
[314520519,1708403432710,-500.0,0.00036325,2]
[314520520,1708403432719,-1040.94,0.00036325,2]
[314520521,1708403432729,-500.0,0.00036325,2]
[314520522,1708403432738,-500.0,0.00036325,2]
[314520523,1708403432747,-500.0,0.00036325,2]
[314520524,1708403432756,-2369.8806,0.00036326,2]
[314520525,1708403432766,-484.9236682,0.00036338,7]
[314520526,1708403432775,-3098.58706266,0.00036348,9]
[314520527,1708403432784,-34763.37831071,0.00036349,9]
[314520528,1708403432797,-534.05788846,0.00036349,9]
[314520529,1708403432826,-3434.90208403,0.00036349,9]
[314520530,1708403432836,-622.11,0.00036357,2]
[314520531,1708403432845,-919.33,0.00036357,2]
[314520532,1708403432854,-1418.23,0.00036357,2]
[314520533,1708403432863,-500.0,0.00036357,2]
[314520534,1708403432873,-2047.31,0.00036357,2]
[314520535,1708403432882,-500.0,0.00036357,2]
[314520536,1708403432891,-8131.8,0.00036357,2]
[314520537,1708403432900,-1436.19,0.00036357,2]
[314520538,1708403432909,-1178.93,0.00036357,2]
[314520539,1708403432918,-4094.98,0.00036357,2]
[314520540,1708403432927,-2212.39,0.00036357,2]
[314520541,1708403432937,-1037.01,0.00036357,2]
[314520542,1708403432946,-500.0,0.00036357,2]
[314520543,1708403432955,-1024.15,0.00036357,2]
[314520544,1708403432964,-1704.89,0.00036357,2]
[314520545,1708403432973,-1363.57,0.00036357,2]
[314520546,1708403432983,-1562.41,0.00036357,2]
[314520547,1708403432992,-1279.01,0.00036357,2]
[314520548,1708403433002,-3653.45,0.00036357,2]
[314520549,1708403433012,-500.0,0.00036357,2]
[314520550,1708403433021,-687.16,0.00036357,2]
[314520551,1708403433031,-9529.11,0.00036357,2]
[314520552,1708403433041,-656.51,0.00036357,2]
[314520553,1708403433051,-1000.13,0.00036357,2]
[314520554,1708403433062,-1038.91,0.00036357,2]
[314520555,1708403433073,-819.02,0.00036357,2]
[314520556,1708403433082,-179.25683176,0.00036357,4]
[314520557,1708403433091,-794.51605435,0.00036357,4]
[314520558,1708403433101,-265.31805578,0.00036357,5]
[314520559,1708403433111,-218.41730577,0.00036357,4]
[314520560,1708403433120,-908.60006878,0.00036357,5]
[314520561,1708403433129,-1050.24,0.00036358,2]
[314520562,1708403433138,-178.18249066,0.00036358,2]
[314520563,1708403433147,-1512.44,0.00036358,2]
[314520564,1708403433158,-842.16,0.00036358,2]
[314520565,1708403433170,-1758.96,0.00036358,2]
[314520566,1708403433181,-3040.84,0.00036358,2]
[314520567,1708403433193,-1211.97,0.00036358,2]
[314520568,1708403433203,-500.0,0.00036358,2]
[314520569,1708403433213,-1182.8,0.00036358,2]
[314520570,1708403433226,-990.01,0.00036358,2]
[314520571,1708403433235,-705.71,0.00036358,2]
[314520572,1708403433244,-5462.45,0.00036358,2]
[314520573,1708403433254,-1145.3,0.00036358,2]
[314520574,1708403433264,-1201.92,0.00036358,2]
[314520575,1708403433275,-1785.53,0.00036358,2]
[314520576,1708403433285,-2811.36,0.00036358,2]
[314520577,1708403433295,-2753.42,0.00036358,2]
[314520578,1708403433305,-500.0,0.00036358,2]
[314520579,1708403433315,-24866.61,0.00036358,2]
[314520580,1708403433324,-2161.44,0.00036358,2]
[314520581,1708403433333,-1229.84,0.00036358,2]
[314520582,1708403433342,-3625.42,0.00036358,2]
[314520583,1708403433351,-2195.6,0.00036358,2]
[314520584,1708403433361,-2855.23,0.00036358,2]
[314520585,1708403433370,-1426.18,0.00036358,2]
[314520586,1708403433378,-2009.65,0.00036358,2]
[314520587,1708403433388,-1169.5,0.00036358,2]
[314520588,1708403433398,-1118.61,0.00036358,2]
[314520589,1708403433407,-1265.71,0.00036358,2]
[314520590,1708403433416,-1772.69,0.00036358,2]
[314520591,1708403433425,-845.31,0.00036358,2]
[314520592,1708403433434,-4619.29,0.00036358,2]
[314520593,1708403433443,-10724.26,0.00036358,2]
[314520594,1708403433452,-1112.46,0.00036358,2]
[314520595,1708403433462,-1081.15,0.00036358,2]
[314520596,1708403433471,-3955.27,0.00036358,2]
[314520597,1708403433480,-1016.56,0.00036358,2]
[314520598,1708403433489,-4494.75,0.00036358,2]
[314520599,1708403433498,-1945.9,0.00036358,2]
[314520600,1708403433508,-1111.67,0.00036358,2]
[314520601,1708403433519,-500.0,0.00036358,2]
[314520602,1708403433528,-500.0,0.00036358,2]
[314520603,1708403433537,-500.0,0.00036358,2]
[314520604,1708403433547,-1498.82,0.00036358,2]
[314520605,1708403433556,-1307.47,0.00036358,2]
[314520606,1708403433566,-508.51,0.00036358,2]
[314520607,1708403433576,-33294.1861,0.00036359,2]
[314520608,1708403433586,-100000.0,0.00036359,2]
[314520609,1708403433597,-1000.0,0.00036359,2]
[314520610,1708403433606,-245000.0,0.00036359,2]
[314520611,1708403433616,-723.07820129,0.00036367,2]
[314520612,1708403433625,-154.919932,0.00036368,2]
[314520613,1708403433633,-176.28392625,0.00036368,2]
[314520614,1708403433642,-202.44388326,0.00036368,9]
[314520615,1708403433651,-1256.22288883,0.00036369,7]
[314520616,1708403433661,-1387.9338713,0.00036377,2]
[314520617,1708403433672,-36031.81575415,0.00036389,2]
[314520618,1708403433681,-36031.81575407,0.00036389,2]
[314520619,1708403433690,-36031.81575407,0.00036389,2]
[314520620,1708403433699,-150.0,0.00036396,2]
[314520621,1708403433709,-36031.81575407,0.00036399,2]
[314520622,1708403433718,-153.34,0.00036408,2]
[314520623,1708403433727,-154.15568373,0.00036413,2]
[314520624,1708403433736,-484.9236682,0.00036415,7]
[314520625,1708403433746,-150.0,0.00036416,2]
[314520626,1708403433756,-302.94181632,0.00036418,2]
[314520627,1708403433767,-150.0,0.00036422,2]
[314520628,1708403433776,-800.0,0.00036438,2]